bitfinex/quotes_BTCUSD_20250108
["timestamp","ask_amount","ask_price","bid_price","bid_amount"]
[1736348446723,0.00015256,95346.0,95345.0,0.80650376]
[1736348447328,0.00115256,95346.0,95345.0,0.81350376]
[1736348447743,0.00015256,95346.0,95345.0,0.80650376]
[1736348447966,8.51e-05,95378.0,95375.0,0.359698]
[1736348448176,0.00023775,95376.0,95375.0,0.359698]
[1736348449348,0.00123775,95376.0,95375.0,0.366698]
[1736348450662,0.00023775,95376.0,95375.0,0.359698]
[1736348450895,0.00023775,95376.0,95375.0,0.366698]
[1736348450896,0.00123775,95376.0,95375.0,0.366698]
[1736348451890,0.00023775,95376.0,95375.0,0.359698]
[1736348452664,0.00123775,95376.0,95375.0,0.366698]
[1736348453301,0.00123775,95376.0,95375.0,0.368698]
[1736348453504,0.00123775,95376.0,95375.0,0.009]
[1736348454522,0.00123775,95376.0,95375.0,0.007]
[1736348454700,0.00123775,95376.0,95375.0,0.00804839]
[1736348454904,0.00123775,95376.0,95375.0,0.009]
[1736348455402,0.00123775,95376.0,95375.0,0.007]
[1736348456354,0.00123775,95376.0,95375.0,0.008]
[1736348456775,0.00023775,95376.0,95375.0,0.001]
[1736348457560,0.00123775,95376.0,95375.0,0.007]
[1736348457969,0.00023775,95376.0,95375.0,0.001]
[1736348458397,0.00023775,95376.0,95375.0,0.004]
[1736348458795,0.00023775,95376.0,95375.0,0.005]
[1736348459998,0.00023775,95376.0,95375.0,0.25929976]
[1736348460537,0.00023775,95376.0,95375.0,0.53979976]
[1736348460740,0.00023775,95376.0,95375.0,0.45008165]
[1736348461099,0.00023775,95376.0,95375.0,0.46972442]
[1736348461307,0.00023775,95376.0,95375.0,0.56972442]
[1736348461654,0.00023775,95376.0,95375.0,0.57372442]
[1736348461909,0.00023775,95376.0,95375.0,0.79617142]
[1736348462116,0.00023775,95376.0,95375.0,0.81517142]
[1736348462327,8.54e-05,95385.0,95375.0,0.81517142]
[1736348462328,5e-07,95385.0,95384.0,0.35]
[1736348462509,8.53e-05,95402.0,95390.0,0.559665]
[1736348462761,8.53e-05,95402.0,95390.0,0.66396476]
[1736348462969,2e-07,95391.0,95390.0,0.84537176]
[1736348463174,8.53e-05,95402.0,95390.0,0.84537176]
[1736348463175,8.53e-05,95402.0,95394.0,0.373]
[1736348463376,8.53e-05,95402.0,95394.0,0.59516276]
[1736348464007,8.53e-05,95402.0,95394.0,0.35429976]
[1736348464206,8.53e-05,95402.0,95394.0,0.25429976]
[1736348464621,8.53e-05,95402.0,95393.0,0.1]
[1736348464622,8.53e-05,95402.0,95393.0,0.00075901]
[1736348464827,8.53e-05,95402.0,95394.0,0.209656]
[1736348465035,8.53e-05,95402.0,95394.0,0.31995576]
[1736348465246,8.53e-05,95402.0,95394.0,0.56995576]
[1736348465470,8.53e-05,95402.0,95394.0,0.56395576]
[1736348465670,8.53e-05,95402.0,95394.0,0.57295576]
[1736348465880,8.53e-05,95402.0,95394.0,0.56495576]
[1736348466089,8.53e-05,95402.0,95394.0,0.76825576]
[1736348466473,8.53e-05,95402.0,95394.0,0.78916379]
[1736348467323,8.53e-05,95402.0,95394.0,0.79216379]
[1736348467942,8.53e-05,95402.0,95394.0,0.67816379]
[1736348468118,8.53e-05,95402.0,95394.0,0.64425576]
[1736348468332,8.53e-05,95402.0,95394.0,0.55025576]
[1736348468472,8.53e-05,95402.0,95394.0,0.55925576]
[1736348468677,8.53e-05,95402.0,95394.0,0.65025576]
[1736348468875,8.53e-05,95402.0,95394.0,0.64425576]
[1736348469099,8.53e-05,95402.0,95394.0,0.65325576]
[1736348469311,0.0010853,95395.0,95394.0,0.65925576]
[1736348469731,0.0010853,95395.0,95394.0,0.78225576]
[1736348470388,0.0010853,95395.0,95394.0,0.77325576]
[1736348470598,0.0010853,95395.0,95394.0,0.78225576]
[1736348470975,8.53e-05,95395.0,95394.0,0.76725576]
[1736348471181,3e-07,95395.0,95394.0,0.76725576]
[1736348471387,8.53e-05,95415.0,95413.0,0.25]
[1736348471640,8.53e-05,95415.0,95413.0,0.41845976]
[1736348471845,8.53e-05,95415.0,95413.0,1.39412376]
[1736348471846,0.00025645,95414.0,95413.0,1.39412376]
[1736348472040,0.0764,95474.0,95413.0,1.39412376]
[1736348472041,0.0764,95474.0,95433.0,0.373]
[1736348472241,0.06416,95488.0,95433.0,0.68687076]
[1736348472242,0.2236903,95471.0,95433.0,0.68687076]
[1736348472448,0.0142013,95471.0,95433.0,0.75103076]
[1736348472680,0.0142013,95471.0,95433.0,0.96818476]
[1736348472891,0.2236903,95471.0,95433.0,0.85185576]
[1736348473103,0.2236903,95471.0,95433.0,0.75103076]
[1736348473528,0.209506,95463.0,95433.0,0.46387076]
[1736348473732,0.209506,95463.0,95433.0,0.359571]
[1736348473733,0.06416,95463.0,95433.0,0.359571]
[1736348473932,0.06416,95463.0,95429.0,0.00075901]
[1736348473933,0.209524,95455.0,95430.0,0.209577]
[1736348474061,0.209524,95455.0,95432.0,0.15]
[1736348474265,0.06416,95461.0,95433.0,0.11434744]
[1736348474468,0.209494,95468.0,95433.0,0.10534744]
[1736348474671,0.0142013,95471.0,95433.0,0.2283472]
[1736348474848,0.209495,95468.0,95433.0,0.13629976]
[1736348475055,0.209495,95468.0,95433.0,0.10629976]
[1736348475056,0.209504,95464.0,95433.0,0.10629976]
[1736348475305,0.209504,95464.0,95433.0,0.10734723]
[1736348475500,0.209504,95464.0,95433.0,0.20734723]
[1736348475650,0.209504,95464.0,95433.0,0.10429976]
[1736348475862,0.209504,95464.0,95433.0,0.10834736]
[1736348476303,0.209499,95466.0,95433.0,0.20834736]
[1736348476505,0.209499,95466.0,95433.0,0.20729976]
[1736348476763,0.209499,95466.0,95433.0,0.21629976]
[1736348476967,0.2236883,95471.0,95433.0,0.21629976]
[1736348476968,0.0142013,95471.0,95433.0,0.45729976]
[1736348477177,3e-07,95444.0,95443.0,0.559549]
[1736348477366,0.00050827,95444.0,95443.0,0.72800876]
[1736348477586,2.7e-07,95444.0,95443.0,0.75100876]
[1736348477927,0.0142013,95471.0,95462.0,0.15]
[1736348478138,0.01435366,95471.0,95463.0,0.10534699]
[1736348478351,0.01435366,95471.0,95470.0,0.359489]
[1736348478548,0.01435366,95471.0,95470.0,0.46378876]
[1736348478747,0.01435366,95471.0,95470.0,0.49250669]
[1736348478962,0.01435366,95471.0,95470.0,0.46378876]
[1736348479169,0.01435366,95471.0,95470.0,0.61550669]
[1736348479572,0.01435366,95471.0,95470.0,0.51332933]
[1736348479944,0.01435366,95471.0,95470.0,0.46378876]
[1736348480095,0.01435366,95471.0,95470.0,0.15]
[1736348480296,0.01435366,95471.0,95465.0,0.00075901]
[1736348480495,0.0457,95470.0,95465.0,0.00075901]
[1736348480886,0.209527,95453.0,95450.0,0.00075901]
[1736348481294,0.419054,95453.0,95450.0,0.00075901]
[1736348481705,0.209562,95437.0,95436.0,0.2328015]
[1736348481910,0.209562,95437.0,95434.0,0.00075901]
[1736348481911,0.273722,95437.0,95434.0,0.00075901]
[1736348482117,0.209562,95437.0,95434.0,0.00075901]
[1736348482326,0.06416,95442.0,95434.0,0.00075901]
[1736348482730,0.0784,95451.0,95425.0,0.00104777]
[1736348482859,0.209549,95444.0,95430.0,0.209576]
[1736348483070,0.209549,95444.0,95430.0,0.419152]
[1736348483269,0.0785523,95451.0,95426.0,0.31388476]
[1736348483270,0.06416,95450.0,95426.0,0.31388476]
[1736348483640,0.0785523,95451.0,95428.0,0.15]
[1736348483815,0.0001523,95451.0,95450.0,0.001]
[1736348484044,0.0001523,95451.0,95450.0,0.10529976]
[1736348484293,0.0001523,95451.0,95450.0,0.25429976]
[1736348484458,0.0001523,95451.0,95450.0,0.25729976]
[1736348484681,0.0001523,95451.0,95450.0,0.25429976]
[1736348485069,3e-07,95451.0,95450.0,0.76631976]
[1736348485279,0.32,95490.0,95470.0,0.359489]
[1736348485437,0.32,95490.0,95470.0,0.46378876]
[1736348487912,0.529446,95490.0,95470.0,0.46378876]
[1736348488115,0.529446,95490.0,95468.0,0.00075901]
[1736348488116,0.209489,95470.0,95468.0,0.00075901]
[1736348488294,0.209482,95474.0,95470.0,0.004]
[1736348488718,0.209483,95473.0,95470.0,0.004]
[1736348489297,0.209505,95463.0,95452.0,0.00075901]
[1736348489498,0.209527,95453.0,95452.0,0.00075901]
[1736348489846,0.209507,95462.0,95452.0,0.00075901]
[1736348490047,0.0142013,95471.0,95452.0,0.00075901]
[1736348490454,0.209499,95466.0,95453.0,0.00104751]
[1736348490658,0.209499,95466.0,95452.0,0.15]
[1736348490844,0.0142013,95471.0,95459.0,0.209513]
[1736348491045,0.0142013,95471.0,95460.0,0.10534723]
[1736348491256,0.0142013,95471.0,95469.0,0.15]
[1736348491461,0.0142013,95471.0,95470.0,0.001]
[1736348491693,0.0142013,95471.0,95470.0,0.359489]
[1736348491891,0.0142013,95471.0,95470.0,0.15]
[1736348492088,0.0142013,95471.0,95470.0,0.15104733]
[1736348492304,0.0142013,95471.0,95470.0,0.15]
[1736348492676,0.0142013,95471.0,95470.0,0.25534705]
[1736348492876,0.0142013,95471.0,95470.0,0.25429976]
[1736348493718,0.0142013,95471.0,95470.0,0.77815176]
[1736348493933,0.0142013,95471.0,95470.0,0.58297076]
[1736348494336,0.0142013,95471.0,95470.0,0.48302876]
[1736348494648,0.0142013,95471.0,95470.0,0.51841976]
[1736348494850,0.0142013,95471.0,95470.0,1.07891076]
[1736348495086,0.0142013,95471.0,95470.0,1.21467176]
[1736348495293,3e-07,95472.0,95471.0,0.629987]
[1736348495572,3e-07,95472.0,95471.0,0.73428676]
[1736348496531,2e-07,95483.0,95482.0,0.559463]
[1736348496738,0.00015247,95483.0,95482.0,0.68676276]
[1736348497672,0.00015247,95483.0,95482.0,0.69723999]
[1736348497883,0.00015247,95483.0,95482.0,0.95902765]
[1736348498249,0.00015247,95483.0,95482.0,0.71802265]
[1736348498447,0.00015247,95483.0,95482.0,0.90205165]
[1736348498653,0.00015247,95483.0,95482.0,0.82957465]
[1736348498859,0.00015247,95483.0,95482.0,0.72702265]
[1736348499066,0.00015247,95483.0,95482.0,0.47276276]
[1736348499289,0.00015247,95483.0,95482.0,0.57276276]
[1736348499730,0.00015247,95483.0,95482.0,0.46876276]
[1736348500152,0.00015247,95483.0,95482.0,0.364463]
[1736348500349,0.00015247,95483.0,95482.0,0.46876276]
[1736348500757,0.00015247,95483.0,95482.0,0.69176276]
[1736348501178,0.00015247,95483.0,95482.0,0.70076276]
[1736348501423,0.00015247,95483.0,95482.0,0.47776276]
[1736348501595,0.00015247,95483.0,95482.0,0.31428276]
[1736348501779,0.00015247,95483.0,95482.0,0.32228276]
[1736348501960,0.00015247,95483.0,95482.0,0.013]
[1736348502169,0.00015247,95483.0,95482.0,0.005]
[1736348502374,0.00015247,95483.0,95482.0,0.009]
[1736348502912,0.00015247,95483.0,95482.0,0.002]
[1736348503335,0.00015247,95483.0,95465.0,0.2095]
[1736348503336,0.00015247,95483.0,95470.0,0.15]
[1736348503479,0.209463,95482.0,95472.0,0.15]
[1736348503689,0.00115247,95483.0,95475.0,0.209476]
[1736348503892,0.00115247,95483.0,95472.0,0.00104736]
[1736348503893,0.00115247,95483.0,95476.0,0.10534706]
[1736348504096,0.00115247,95483.0,95482.0,0.15]
[1736348504452,0.00015247,95483.0,95482.0,0.15]
[1736348504795,2.64e-05,95483.0,95482.0,0.15]
[1736348505495,2.64e-05,95483.0,95482.0,0.15104719]
[1736348505732,0.0010264,95483.0,95482.0,0.26434695]
[1736348505908,0.0010264,95483.0,95482.0,0.26329976]
[1736348506137,2.64e-05,95483.0,95482.0,0.25429976]
[1736348506311,2.64e-05,95483.0,95482.0,0.47729976]
[1736348506723,2.64e-05,95483.0,95482.0,0.48029976]
[1736348507156,2.64e-05,95483.0,95482.0,1.01523916]
[1736348507415,2.64e-05,95483.0,95482.0,1.41999817]
[1736348507575,2.64e-05,95483.0,95482.0,1.45100956]
[1736348507784,2.64e-05,95483.0,95482.0,1.00965156]
[1736348508000,2.64e-05,95483.0,95482.0,1.15908556]
[1736348508315,2.64e-05,95483.0,95482.0,1.18640256]
[1736348508629,2.64e-05,95483.0,95482.0,0.73190856]
[1736348508908,2.64e-05,95483.0,95482.0,0.60889255]
[1736348509133,2.64e-05,95483.0,95482.0,0.74929655]
[1736348509255,2.64e-05,95483.0,95482.0,0.61789255]
[1736348509469,2.64e-05,95483.0,95482.0,0.84221229]
[1736348509671,2.64e-05,95483.0,95482.0,0.37263089]
[1736348509874,2.64e-05,95483.0,95482.0,0.24631974]
[1736348510079,2.64e-05,95483.0,95482.0,0.3506195]
[1736348510279,2.64e-05,95483.0,95482.0,0.5006195]
[1736348510480,2.64e-05,95483.0,95482.0,0.26729976]
[1736348510705,2.64e-05,95483.0,95482.0,0.35429976]
[1736348510908,2.64e-05,95483.0,95482.0,0.35929976]
[1736348511126,2.64e-05,95483.0,95482.0,0.48229976]
[1736348511482,2.64e-05,95483.0,95482.0,0.98895976]
[1736348511738,0.0200264,95490.0,95482.0,0.48629976]
[1736348511946,0.0200264,95490.0,95489.0,0.56374776]
[1736348512171,0.0200264,95490.0,95489.0,0.62782776]
[1736348512924,0.0200264,95490.0,95489.0,0.54584776]
[1736348513125,0.0200264,95490.0,95489.0,0.567131]
[1736348513329,0.0200264,95490.0,95489.0,0.485031]
[1736348513710,0.0200264,95490.0,95489.0,0.25429976]
[1736348514549,0.0200264,95490.0,95489.0,0.26629976]
[1736348514956,0.0200264,95490.0,95489.0,0.26329976]
[1736348515350,0.0200264,95490.0,95489.0,0.26629976]
[1736348515781,0.0200264,95490.0,95489.0,0.26329976]
[1736348516347,2.1e-07,95491.0,95490.0,0.661246]
[1736348516573,2.1e-07,95501.0,95500.0,0.559424]
[1736348516783,2.1e-07,95501.0,95500.0,0.68672376]
[1736348517500,2.1e-07,95501.0,95500.0,0.77197845]
[1736348518074,2.1e-07,95501.0,95500.0,0.78497845]
[1736348518455,4.1e-07,95510.0,95509.0,0.582404]
[1736348518708,4.1e-07,95510.0,95509.0,0.68670376]
[1736348519152,4.1e-07,95510.0,95509.0,0.46370376]
[1736348520128,4.1e-07,95510.0,95509.0,0.79150376]
[1736348520334,7e-07,95530.0,95527.0,0.273]
[1736348520536,9.7e-07,95530.0,95529.0,0.45429976]
[1736348520742,9.7e-07,95530.0,95529.0,0.47484784]
[1736348520988,9.7e-07,95530.0,95529.0,0.49784784]
[1736348521368,0.0142013,95565.0,95539.0,0.359338]
[1736348521572,5.7e-07,95540.0,95539.0,1.06493976]
[1736348521966,5.7e-07,95540.0,95539.0,0.83274968]
[1736348522138,5.7e-07,95540.0,95539.0,0.83350869]
[1736348522344,5.7e-07,95540.0,95539.0,0.86386595]
[1736348522557,5.7e-07,95540.0,95539.0,0.76739677]
[1736348522753,5.7e-07,95540.0,95539.0,0.47483431]
[1736348522932,5.7e-07,95540.0,95539.0,0.46363776]
[1736348523094,5.7e-07,95540.0,95539.0,0.209338]
[1736348523505,5.7e-07,95540.0,95539.0,0.46363776]
[1736348523747,5.7e-07,95540.0,95539.0,0.47063776]
[1736348523956,5.7e-07,95540.0,95539.0,0.70263776]
[1736348524190,5.7e-07,95540.0,95539.0,0.69363776]
[1736348524407,5.7e-07,95540.0,95539.0,0.58663776]
[1736348524612,5.7e-07,95540.0,95539.0,0.53667776]
[1736348524739,5.7e-07,95540.0,95539.0,0.47663776]
[1736348524945,5.7e-07,95540.0,95539.0,0.004]
[1736348525198,5.7e-07,95540.0,95536.0,0.209343]
[1736348525340,5.7e-07,95540.0,95539.0,0.159]
[1736348525544,5.7e-07,95540.0,95539.0,0.165]
[1736348526815,5.7e-07,95540.0,95539.0,0.156]
[1736348527207,5.7e-07,95540.0,95539.0,0.165]
[1736348527572,5.7e-07,95540.0,95539.0,0.15]
[1736348527977,5.7e-07,95540.0,95539.0,0.005]
[1736348528369,5.7e-07,95540.0,95536.0,0.00075901]
[1736348528582,0.52297676,95539.0,95536.0,0.00075901]
[1736348528787,0.1,95535.0,95508.0,0.23295268]
[1736348528991,0.209386,95518.0,95508.0,0.23295268]
[1736348529269,0.209395,95513.0,95508.0,0.23295268]
[1736348529516,0.0785,95530.0,95500.0,0.00075833]
[1736348529517,0.209406,95508.0,95500.0,0.00075833]
[1736348529718,0.209408,95507.0,95500.0,0.00075833]
[1736348529921,0.209388,95517.0,95500.0,0.00075833]
[1736348530138,0.209307,95554.0,95501.0,0.0010471]
[1736348530139,0.11094,95532.0,95501.0,0.0010471]
[1736348530319,0.11094,95532.0,95490.0,0.29195241]
[1736348530320,0.31366176,95529.0,95507.0,0.209408]
[1736348530556,0.209373,95524.0,95509.0,0.209404]
[1736348530789,0.209373,95524.0,95512.0,0.0211177]
[1736348531011,0.11094,95532.0,95513.0,0.10429976]
[1736348531012,0.0469,95532.0,95513.0,0.10429976]
[1736348531213,0.0469,95532.0,95515.0,0.15]
[1736348531394,0.0469,95532.0,95517.0,0.15]
[1736348531566,0.209336,95540.0,95523.0,0.209372]
[1736348531567,0.209346,95536.0,95523.0,0.209372]
[1736348531748,0.209346,95536.0,95512.0,0.0211177]
[1736348531749,0.002,95518.0,95515.0,0.209389]
[1736348531929,0.002,95518.0,95512.0,0.02187603]
[1736348532147,0.209354,95532.0,95518.0,0.15]
[1736348532353,0.209354,95532.0,95514.0,0.15]
[1736348532560,0.209356,95531.0,95518.0,0.209383]
[1736348532768,0.209365,95527.0,95512.0,0.00075833]
[1736348532968,0.209365,95527.0,95509.0,0.0005068]
[1736348532969,0.209398,95512.0,95509.0,0.00126513]
[1736348533226,0.209402,95510.0,95509.0,0.00126513]
[1736348533643,0.31370176,95510.0,95509.0,0.00126513]
[1736348533865,0.31370176,95510.0,95509.0,0.0005068]
[1736348534295,0.48055174,95510.0,95509.0,0.0005068]
[1736348534493,0.31370176,95510.0,95509.0,0.0005068]
[1736348534719,0.37774176,95510.0,95509.0,0.0005068]
[1736348535171,0.50074176,95510.0,95509.0,0.0005068]
[1736348535742,0.50074176,95510.0,95509.0,0.0015068]
[1736348535939,0.50374176,95510.0,95509.0,0.0015068]
[1736348536147,0.50374176,95510.0,95490.0,0.00092853]
[1736348536148,0.1,95503.0,95490.0,0.00092853]
[1736348536356,0.003,95510.0,95490.0,0.00032247]
[1736348536557,0.209404,95509.0,95490.0,0.00032247]
[1736348536779,0.10429976,95508.0,95490.0,0.00032247]
[1736348537059,0.1,95506.0,95490.0,0.00032247]
[1736348537289,0.209415,95504.0,95491.0,0.209443]
[1736348537499,0.10429976,95503.0,95490.0,0.00032247]
[1736348537701,0.209433,95496.0,95490.0,0.00032247]
[1736348538103,0.31371976,95502.0,95490.0,0.00032247]
[1736348538104,0.41887,95495.0,95490.0,0.00032247]
[1736348538599,0.52316976,95495.0,95490.0,0.00032247]
[1736348538780,0.20943,95497.0,95490.0,0.00032247]
[1736348539010,0.0776,95520.0,95490.0,0.00032247]
[1736348539011,0.0454,95511.0,95492.0,0.209441]
[1736348539209,0.209414,95505.0,95490.0,0.00032247]
[1736348539409,0.20943,95498.0,95490.0,0.00032247]
[1736348539723,0.20943,95498.0,95490.0,0.00232247]
[1736348540132,0.209422,95501.0,95490.0,0.00232247]
[1736348540133,0.209438,95494.0,95490.0,0.00232247]
[1736348540330,0.418877,95494.0,95490.0,0.00232247]
[1736348541574,0.209438,95494.0,95490.0,0.00032247]
[1736348541777,0.418876,95494.0,95492.0,0.001]
[1736348542162,0.418876,95494.0,95490.0,0.00032247]
[1736348542375,0.419876,95494.0,95490.0,0.00032247]
[1736348542579,0.002,95494.0,95490.0,0.20976747]
[1736348542883,0.419874,95494.0,95490.0,0.00032247]
[1736348543632,0.418874,95494.0,95490.0,0.00032247]
[1736348543986,0.419874,95494.0,95490.0,0.00032247]
[1736348544384,0.209441,95492.0,95490.0,0.00032247]
[1736348544545,0.10429976,95491.0,95490.0,0.00032247]
[1736348545568,0.001,95492.0,95490.0,0.00032247]
[1736348545973,0.001,95492.0,95491.0,0.209443]
[1736348546742,0.001,95492.0,95491.0,0.46334276]
[1736348546944,0.209378,95521.0,95491.0,0.25429976]
[1736348547169,0.0488,95531.0,95501.0,0.15]
[1736348547394,0.076,95548.0,95521.0,0.15]
[1736348547601,0.076,95548.0,95539.0,0.15]
[1736348547602,0.10429976,95548.0,95539.0,0.15]
[1736348547801,8.52e-05,95549.0,95546.0,0.15]
[1736348548007,8.52e-05,95549.0,95548.0,0.15]
[1736348548215,8.52e-05,95549.0,95539.0,0.209336]
[1736348548421,8.52e-05,95549.0,95538.0,0.00075833]
[1736348548634,0.10429976,95548.0,95538.0,0.00075833]
[1736348548879,0.1247,95547.0,95538.0,0.00075833]
[1736348549087,0.10429976,95547.0,95531.0,0.15]
[1736348549291,0.00059257,95549.0,95545.0,0.209323]
[1736348549493,0.00059257,95549.0,95546.0,0.15]
[1736348549902,0.00059257,95549.0,95539.0,0.209337]
[1736348550131,0.00059257,95549.0,95540.0,0.209336]
[1736348550339,0.00059257,95549.0,95541.0,0.15]
[1736348550547,0.001,95547.0,95545.0,0.15]
[1736348550750,0.001,95547.0,95544.0,0.209327]
[1736348550751,0.00059257,95549.0,95547.0,0.15]
[1736348550956,0.00059257,95549.0,95548.0,0.46466414]
[1736348550957,0.00259257,95549.0,95548.0,0.46466414]
[1736348551158,0.00259257,95549.0,95548.0,0.46361776]
[1736348551767,0.00059257,95549.0,95548.0,0.46361776]
[1736348552444,0.00059257,95549.0,95548.0,0.48661776]
[1736348552660,0.00059257,95549.0,95548.0,0.58661776]
[1736348552884,0.00059257,95549.0,95548.0,0.46361776]
[1736348553316,0.00059257,95549.0,95548.0,0.359318]
[1736348553574,0.00059257,95549.0,95548.0,0.368318]
[1736348553776,0.00059257,95549.0,95546.0,0.209323]
[1736348553777,0.00059257,95549.0,95546.0,0.00075833]
[1736348553984,0.209318,95548.0,95546.0,0.00075833]
[1736348554200,0.31361776,95548.0,95546.0,0.00075833]
[1736348554419,0.41361776,95548.0,95546.0,0.00075833]
[1736348554629,0.31361776,95548.0,95546.0,0.00075833]
[1736348554849,0.31361776,95548.0,95529.0,0.00075833]
[1736348554850,0.209329,95544.0,95529.0,0.00075833]
[1736348555054,0.06404,95548.0,95529.0,0.00075833]
[1736348555055,0.209341,95538.0,95529.0,0.00075833]
[1736348555260,0.10429976,95538.0,95529.0,0.00075833]
[1736348555471,0.209342,95537.0,95529.0,0.00075833]
[1736348555673,0.209354,95532.0,95529.0,0.00075833]
[1736348555875,0.209342,95537.0,95524.0,0.15]
[1736348556251,0.209352,95533.0,95524.0,0.15]
[1736348556471,0.209342,95537.0,95524.0,0.15]
[1736348556672,0.209354,95532.0,95524.0,0.15]
[1736348556886,0.06404,95540.0,95519.0,0.00075833]
[1736348556887,0.24031002,95531.0,95519.0,0.00075833]
[1736348557092,0.10429976,95531.0,95519.0,0.00075833]
[1736348557295,0.003,95544.0,95519.0,0.00075833]
[1736348557296,0.06404,95532.0,95519.0,0.00075833]
[1736348557923,0.209367,95526.0,95516.0,0.15]
[1736348558348,0.209358,95530.0,95517.0,0.209386]
[1736348558568,0.209362,95528.0,95517.0,0.209386]
[1736348558754,0.31366376,95527.0,95516.0,0.15]
[1736348558984,0.209357,95531.0,95519.0,0.209382]
[1736348559204,0.065,95532.0,95513.0,0.15]
[1736348559375,0.209366,95527.0,95519.0,0.001]
[1736348559752,0.209366,95527.0,95515.0,0.15]
[1736348559980,0.209366,95527.0,95491.0,0.289643]
[1736348559981,0.209371,95524.0,95516.0,0.002]
[1736348560316,0.209432,95497.0,95491.0,0.00075833]
[1736348560592,0.10429976,95523.0,95491.0,0.00075833]
[1736348560593,0.064,95503.0,95491.0,0.00075833]
[1736348560953,0.10429976,95502.0,95490.0,0.0001702]
[1736348561158,0.209443,95491.0,95490.0,0.0001702]
[1736348561546,0.47657416,95491.0,95490.0,0.00032247]
[1736348561760,0.47657416,95491.0,95481.0,0.00075833]
[1736348561761,0.209463,95482.0,95481.0,0.00075833]
[1736348561959,0.20946,95484.0,95463.0,0.15104748]
[1736348562166,0.10429976,95483.0,95462.0,0.00015227]
[1736348562385,0.1,95481.0,95462.0,0.00015227]
[1736348562593,0.20947,95479.0,95462.0,0.00015227]
[1736348562794,0.209485,95473.0,95462.0,0.00015227]
[1736348563045,0.209498,95467.0,95462.0,0.00015227]
[1736348563239,0.419,95465.0,95462.0,0.00015227]
[1736348563619,0.05956,95464.0,95462.0,0.00015227]
[1736348563842,0.209505,95463.0,95462.0,0.00015227]
[1736348564648,0.10429976,95464.0,95462.0,0.00015227]
[1736348564867,0.209472,95479.0,95462.0,0.00015227]
[1736348565071,0.1,95489.0,95462.0,0.00015227]
[1736348565072,0.002,95463.0,95462.0,0.00015227]
[1736348565447,0.209498,95466.0,95462.0,0.00015227]
[1736348565650,0.209503,95464.0,95462.0,0.00015227]
[1736348565852,0.31580276,95464.0,95462.0,0.00015227]
[1736348566086,0.31780276,95464.0,95462.0,0.00015227]
[1736348566230,0.31580276,95464.0,95462.0,0.00015227]
[1736348566734,0.20629976,95463.0,95462.0,0.00015227]
[1736348566942,0.10429976,95463.0,95462.0,0.00015227]
[1736348567768,0.211498,95466.0,95462.0,0.00015227]
[1736348567769,0.209498,95466.0,95462.0,0.00015227]
[1736348567968,0.06404,95463.0,95462.0,0.00015227]
[1736348568179,0.06504,95463.0,95462.0,0.00015227]
[1736348568382,0.001,95463.0,95462.0,0.00015227]
[1736348568583,0.209491,95470.0,95462.0,0.00015227]
[1736348568791,0.209398,95512.0,95462.0,0.00015227]
[1736348568792,0.1,95499.0,95462.0,0.00015227]
[1736348568995,0.209438,95494.0,95482.0,0.209462]
[1736348569167,0.20943,95498.0,95465.0,0.15]
[1736348569380,0.01037565,95503.0,95472.0,0.15]
[1736348569586,0.06404,95505.0,95473.0,0.00104726]
[1736348569587,0.209429,95498.0,95473.0,0.00104726]
[1736348569797,0.209429,95498.0,95485.0,0.15]
[1736348570221,0.001,95494.0,95485.0,0.15]
[1736348570564,0.209429,95498.0,95485.0,0.15]
[1736348570768,0.212429,95498.0,95485.0,0.15]
[1736348571365,0.1,95518.0,95485.0,0.15]
[1736348571580,0.0495,95526.0,95484.0,0.00075833]
[1736348571581,0.1,95536.0,95510.0,0.209401]
[1736348571797,0.10429976,95535.0,95514.0,0.209392]
[1736348572173,0.0495,95545.0,95519.0,0.15]
[1736348572409,0.0495,95545.0,95522.0,0.209374]
[1736348572410,0.20935,95534.0,95522.0,0.209374]
[1736348572583,0.20936,95530.0,95519.0,0.15]
[1736348572789,0.209353,95532.0,95509.0,0.15]
[1736348572988,0.209367,95526.0,95516.0,0.15]
[1736348573219,0.00015216,95534.0,95525.0,0.209367]
[1736348573393,0.00015216,95534.0,95518.0,0.15]
[1736348573531,0.00015216,95534.0,95529.0,0.209359]
[1736348573738,0.00015216,95534.0,95530.0,0.15]
[1736348573958,0.00015216,95534.0,95532.0,0.15]
[1736348574163,0.00015216,95534.0,95533.0,0.15]
[1736348574774,0.00015216,95534.0,95530.0,0.15]
[1736348575235,0.00015216,95534.0,95531.0,0.209356]
[1736348575984,0.00015216,95534.0,95533.0,0.15]
[1736348576300,0.00015216,95534.0,95533.0,0.359351]
[1736348576676,0.00115216,95534.0,95533.0,0.359351]
[1736348577018,0.00215216,95534.0,95533.0,0.359351]
[1736348577245,0.00115216,95534.0,95533.0,0.359351]
[1736348577448,0.00215216,95534.0,95533.0,0.359351]
[1736348577780,0.00015216,95534.0,95533.0,0.359351]
[1736348578022,0.00015216,95534.0,95533.0,0.362351]
[1736348579250,0.00115216,95534.0,95533.0,0.371351]
[1736348579808,0.00115216,95534.0,95533.0,0.47565076]
[1736348580546,0.00115216,95534.0,95533.0,0.49865076]
[1736348580717,0.00115216,95534.0,95533.0,0.59865076]
[1736348580918,8.52e-05,95549.0,95548.0,0.359318]
[1736348581117,0.00059257,95549.0,95548.0,0.46361776]
[1736348582324,0.0001554,95573.0,95565.0,0.0814]
[1736348582531,0.00023732,95567.0,95566.0,0.75018275]
[1736348582733,6.692e-05,95567.0,95566.0,1.12801358]
[1736348582946,6.692e-05,95567.0,95566.0,0.96134758]
[1736348583156,9.2e-07,95567.0,95566.0,1.19141741]
[1736348583383,0.0001554,95573.0,95572.0,0.582266]
[1736348583557,0.0001554,95573.0,95572.0,0.75056576]
[1736348583788,0.0001554,95573.0,95572.0,0.98745908]
[1736348583992,0.0001554,95573.0,95572.0,1.01776758]
[1736348584349,0.0001554,95573.0,95572.0,1.41776758]
[1736348584549,0.0001554,95573.0,95572.0,1.22345908]
[1736348584759,0.0001554,95573.0,95572.0,1.18985508]
[1736348584934,8.52e-05,95579.0,95578.0,0.559253]
[1736348585155,8.52e-05,95579.0,95578.0,1.34640258]
[1736348585363,8.52e-05,95579.0,95578.0,0.72015058]
[1736348585769,0.05,95600.0,95587.0,0.482233]
[1736348586066,0.05,95600.0,95599.0,0.382207]
[1736348586266,0.05015209,95600.0,95599.0,0.48650676]
[1736348586520,0.05015209,95600.0,95599.0,0.55394595]
[1736348586720,0.05015209,95600.0,95599.0,0.62904595]
[1736348586922,0.05005978,95600.0,95599.0,0.62904595]